[Event "Titled Tuesday Blitz January 31 Late 2023"]
[White "Klose, Eli"]
[Black "Grot, Blazej"]
[WhiteFideId "16242955"]
[BlackFideId "21835845"]
[WhiteElo "1519"]
[BlackElo "1990"]
[Result "1-0"]
[Round "04"]
[TimeControl "180+2"]
[Date "2023.01.31"]
[WhiteClock "0:01:49"]
[BlackClock "0:00:41"]

1. e4 {[%clk 0:02:55]}  e5 {[%clk 0:02:44]} 2. Nf3 {[%clk 0:02:54]}  Nc6 {[%clk 0:02:45]} 3. d4 {[%clk 0:02:54]}  exd4 {[%clk 0:02:45]} 4. Bc4 {[%clk 0:02:54]}  Bc5 {[%clk 0:02:44]} 5. Ng5 {[%clk 0:02:53]}  Nh6 {[%clk 0:02:43]} 6. Nxf7 {[%clk 0:02:54]}  Nxf7 {[%clk 0:02:44]} 7. Bxf7+ {[%clk 0:02:55]}  Kxf7 {[%clk 0:02:44]} 8. Qh5+ {[%clk 0:02:55]}  g6 {[%clk 0:02:45]} 9. Qxc5 {[%clk 0:02:56]}  d6 {[%clk 0:02:45]} 10. Qb5 {[%clk 0:02:56]}  Rf8 {[%clk 0:02:44]} 11. O-O {[%clk 0:02:53]}  Kg8 {[%clk 0:02:44]} 12. Nd2 {[%clk 0:02:53]}  Ne5 {[%clk 0:02:44]} 13. Qd5+ {[%clk 0:02:48]}  Kg7 {[%clk 0:02:42]} 14. Qxd4 {[%clk 0:02:48]}  Qf6 {[%clk 0:02:40]} 15. b3 {[%clk 0:02:38]}  Nd7 {[%clk 0:02:34]} 16. Qxf6+ {[%clk 0:02:37]}  Nxf6 {[%clk 0:02:35]} 17. Bb2 {[%clk 0:02:38]}  Re8 {[%clk 0:02:31]} 18. Rad1 {[%clk 0:02:35]}  Bd7 {[%clk 0:02:30]} 19. Rfe1 {[%clk 0:02:35]}  Bc6 {[%clk 0:02:30]} 20. f3 {[%clk 0:02:31]}  Rad8 {[%clk 0:02:28]} 21. Nc4 {[%clk 0:02:31]}  Kf7 {[%clk 0:02:26]} 22. Kf2 {[%clk 0:02:29]}  Nd7 {[%clk 0:02:26]} 23. Na5 {[%clk 0:02:24]}  Ne5 {[%clk 0:02:23]} 24. Bxe5 {[%clk 0:02:22]}  Rxe5 {[%clk 0:02:24]} 25. Nxc6 {[%clk 0:02:21]}  bxc6 {[%clk 0:02:24]} 26. Rd4 {[%clk 0:02:21]}  Ra5 {[%clk 0:02:13]} 27. Rc4 {[%clk 0:02:22]}  Rxa2 {[%clk 0:02:09]} 28. Rxc6 {[%clk 0:02:21]}  Rd7 {[%clk 0:02:08]} 29. Re3 {[%clk 0:02:21]}  Ke7 {[%clk 0:02:07]} 30. Rec3 {[%clk 0:02:20]}  Kd8 {[%clk 0:02:07]} 31. g3 {[%clk 0:02:20]}  a5 {[%clk 0:02:04]} 32. R3c4 {[%clk 0:02:17]}  Rf7 {[%clk 0:02:03]} 33. Ke3 {[%clk 0:02:15]}  Ra1 {[%clk 0:02:01]} 34. f4 {[%clk 0:02:12]}  Rh1 {[%clk 0:02:00]} 35. h4 {[%clk 0:02:12]}  Rg1 {[%clk 0:01:57]} 36. Kf2 {[%clk 0:02:11]}  Ra1 {[%clk 0:01:56]} 37. Ra4 {[%clk 0:02:09]}  Rxa4 {[%clk 0:00:52]} 38. bxa4 {[%clk 0:02:10]}  Kc8 {[%clk 0:00:51]} 39. Ra6 {[%clk 0:02:09]}  Kb7 {[%clk 0:00:50]} 40. Rxa5 {[%clk 0:02:09]}  c6 {[%clk 0:00:51]} 41. Rg5 {[%clk 0:02:06]}  Rf8 {[%clk 0:00:49]} 42. h5 {[%clk 0:02:05]}  gxh5 {[%clk 0:00:44]} 43. Rxh5 {[%clk 0:02:05]}  Ra8 {[%clk 0:00:43]} 44. Rxh7+ {[%clk 0:02:04]}  Kb6 {[%clk 0:00:43]} 45. Rh6 {[%clk 0:02:00]}  Rxa4 {[%clk 0:00:43]} 46. Rxd6 {[%clk 0:02:00]}  Rxe4 {[%clk 0:00:42]} 47. Kf3 {[%clk 0:02:00]}  Rc4 {[%clk 0:00:41]} 48. Rd2 {[%clk 0:02:00]}  Kc5 {[%clk 0:00:42]} 49. g4 {[%clk 0:01:58]}  Rc3+ {[%clk 0:00:42]} 50. Ke4 {[%clk 0:01:58]}  Rg3 {[%clk 0:00:42]} 51. g5 {[%clk 0:01:57]}  Kc4 {[%clk 0:00:42]} 52. Kf5 {[%clk 0:01:56]}  c5 {[%clk 0:00:42]} 53. Kf6 {[%clk 0:01:55]}  Kc3 {[%clk 0:00:43]} 54. Rf2 {[%clk 0:01:55]}  Kd4 {[%clk 0:00:38]} 55. f5 {[%clk 0:01:54]}  Ke3 {[%clk 0:00:38]} 56. Rh2 {[%clk 0:01:54]}  Rf3 {[%clk 0:00:37]} 57. g6 {[%clk 0:01:53]}  Ke4 {[%clk 0:00:38]} 58. Rh4+ {[%clk 0:01:53]}  Kd5 {[%clk 0:00:38]} 59. g7 {[%clk 0:01:53]}  Rg3 {[%clk 0:00:39]} 60. Kf7 {[%clk 0:01:51]}  c4 {[%clk 0:00:38]} 61. f6 {[%clk 0:01:51]}  Rxg7+ {[%clk 0:00:39]} 62. fxg7 {[%clk 0:01:51]}  c3 {[%clk 0:00:40]} 63. g8=Q {[%clk 0:01:52]}  Ke5 {[%clk 0:00:40]} 64. Qg5+ {[%clk 0:01:52]}  Kd6 {[%clk 0:00:40]} 65. Rd4+ {[%clk 0:01:51]}  Kc6 {[%clk 0:00:40]} 66. Qd5+ {[%clk 0:01:51]}  Kc7 {[%clk 0:00:40]} 67. Qd6+ {[%clk 0:01:48]}  Kc8 {[%clk 0:00:40]} 68. Rc4+ {[%clk 0:01:48]}  Kb7 {[%clk 0:00:40]} 69. Rb4+ {[%clk 0:01:48]}  Ka7 {[%clk 0:00:41]} 70. Qb6+ {[%clk 0:01:48]}  Ka8 {[%clk 0:00:41]} 71. Qb8# {[%clk 0:01:49]} 1-0


[Site "https://www.chess.com"]

[Event "Titled Tuesday Blitz January 31 Late 2023"]
[White "Melikhov, Evgeny V."]
[Black "Fiorito, Joaquin"]
[WhiteFideId "4122046"]
[BlackFideId "180173"]
[WhiteElo "2269"]
[BlackElo "2405"]
[Result "1/2-1/2"]
[Round "04"]
[TimeControl "180+2"]
[Date "2023.01.31"]
[WhiteClock "0:00:03"]
[BlackClock "0:01:41"]

1. d4 {[%clk 0:03:00]}  Nf6 {[%clk 0:02:59]} 2. c4 {[%clk 0:03:00]}  e6 {[%clk 0:03:00]} 3. Nc3 {[%clk 0:03:00]}  Bb4 {[%clk 0:02:59]} 4. Qc2 {[%clk 0:03:00]}  d5 {[%clk 0:02:59]} 5. cxd5 {[%clk 0:03:00]}  exd5 {[%clk 0:02:59]} 6. Bg5 {[%clk 0:02:59]}  c6 {[%clk 0:02:58]} 7. e3 {[%clk 0:02:56]}  h6 {[%clk 0:02:56]} 8. Bh4 {[%clk 0:02:53]}  Nbd7 {[%clk 0:02:57]} 9. Bd3 {[%clk 0:02:52]}  O-O {[%clk 0:02:57]} 10. Ne2 {[%clk 0:02:51]}  c5 {[%clk 0:02:57]} 11. dxc5 {[%clk 0:02:49]}  Nxc5 {[%clk 0:02:58]} 12. O-O {[%clk 0:02:44]}  Be6 {[%clk 0:02:58]} 13. Nb5 {[%clk 0:02:35]}  a6 {[%clk 0:02:53]} 14. Nbd4 {[%clk 0:02:35]}  Rc8 {[%clk 0:02:53]} 15. Qd1 {[%clk 0:02:28]}  Nxd3 {[%clk 0:02:52]} 16. Qxd3 {[%clk 0:02:28]}  Bd6 {[%clk 0:02:52]} 17. Bg3 {[%clk 0:02:07]}  Be7 {[%clk 0:02:51]} 18. Rac1 {[%clk 0:02:04]}  Qa5 {[%clk 0:02:49]} 19. a3 {[%clk 0:02:03]}  Ne4 {[%clk 0:02:48]} 20. Nxe6 {[%clk 0:01:40]}  fxe6 {[%clk 0:02:49]} 21. Nf4 {[%clk 0:01:40]}  Nxg3 {[%clk 0:02:36]} 22. hxg3 {[%clk 0:01:37]}  Qb6 {[%clk 0:02:36]} 23. Rxc8 {[%clk 0:01:24]}  Rxc8 {[%clk 0:02:35]} 24. Qg6 {[%clk 0:01:23]}  Bf6 {[%clk 0:02:34]} 25. b4 {[%clk 0:01:09]}  Qd6 {[%clk 0:02:23]} 26. Rd1 {[%clk 0:00:58]}  Rf8 {[%clk 0:02:20]} 27. Qc2 {[%clk 0:00:21]}  Rd8 {[%clk 0:02:13]} 28. Rc1 {[%clk 0:00:18]}  e5 {[%clk 0:02:12]} 29. Nd3 {[%clk 0:00:17]}  d4 {[%clk 0:02:13]} 30. e4 {[%clk 0:00:17]}  Kh7 {[%clk 0:02:10]} 31. Qc4 {[%clk 0:00:16]}  Qe7 {[%clk 0:02:07]} 32. Rc2 {[%clk 0:00:15]}  Qd7 {[%clk 0:02:04]} 33. Qc5 {[%clk 0:00:14]}  Qg4 {[%clk 0:02:04]} 34. f3 {[%clk 0:00:08]}  Qxg3 {[%clk 0:02:04]} 35. Qc7 {[%clk 0:00:06]}  Qg5 {[%clk 0:01:55]} 36. Qf7 {[%clk 0:00:05]}  Qe3+ {[%clk 0:01:55]} 37. Nf2 {[%clk 0:00:02]}  d3 {[%clk 0:01:55]} 38. Rc7 {[%clk 0:00:02]}  d2 {[%clk 0:01:51]} 39. Qxf6 {[%clk 0:00:02]}  d1=Q+ {[%clk 0:01:51]} 40. Kh2 {[%clk 0:00:02]}  Qf4+ {[%clk 0:01:50]} 41. Qxf4 {[%clk 0:00:02]}  exf4 {[%clk 0:01:51]} 42. Nxd1 {[%clk 0:00:02]}  Rxd1 {[%clk 0:01:51]} 43. Rxb7 {[%clk 0:00:03]}  Ra1 {[%clk 0:01:50]} 44. b5 {[%clk 0:00:03]}  a5 {[%clk 0:01:47]} 45. Ra7 {[%clk 0:00:03]}  Rxa3 {[%clk 0:01:48]} 46. b6 {[%clk 0:00:03]}  Rb3 {[%clk 0:01:49]} 47. Rxa5 {[%clk 0:00:03]}  Rxb6 {[%clk 0:01:49]} 48. Rf5 {[%clk 0:00:04]}  g5 {[%clk 0:01:49]} 49. Kh3 {[%clk 0:00:03]}  Kg6 {[%clk 0:01:49]} 50. Rc5 {[%clk 0:00:03]}  Kh5 {[%clk 0:01:49]} 51. g4+ {[%clk 0:00:03]}  Kg6 {[%clk 0:01:46]} 52. Ra5 {[%clk 0:00:03]}  h5 {[%clk 0:01:46]} 53. gxh5+ {[%clk 0:00:02]}  Kxh5 {[%clk 0:01:46]} 54. Ra8 {[%clk 0:00:03]}  Rb3 {[%clk 0:01:46]} 55. Rh8+ {[%clk 0:00:03]}  Kg6 {[%clk 0:01:46]} 56. Kg4 {[%clk 0:00:02]}  Rb2 {[%clk 0:01:44]} 57. Rg8+ {[%clk 0:00:03]}  Kh6 {[%clk 0:01:45]} 58. Rh8+ {[%clk 0:00:03]}  Kg6 {[%clk 0:01:45]} 59. Rg8+ {[%clk 0:00:03]}  Kf6 {[%clk 0:01:46]} 60. Rf8+ {[%clk 0:00:02]}  Ke7 {[%clk 0:01:46]} 61. Rf5 {[%clk 0:00:02]}  Rg2+ {[%clk 0:01:47]} 62. Kh5 {[%clk 0:00:02]}  Rg3 {[%clk 0:01:45]} 63. Kg6 {[%clk 0:00:02]}  Ke6 {[%clk 0:01:42]} 64. Rxg5 {[%clk 0:00:02]}  Rxf3 {[%clk 0:01:43]} 65. Rf5 {[%clk 0:00:01]}  Rg3+ {[%clk 0:01:41]} 66. Kh5 {[%clk 0:00:01]}  f3 {[%clk 0:01:41]} 67. Kh4 {[%clk 0:00:02]}  Rg1 {[%clk 0:01:36]} 68. Rxf3 {[%clk 0:00:02]}  Ke5 {[%clk 0:01:37]} 69. Rg3 {[%clk 0:00:02]}  Rh1+ {[%clk 0:01:37]} 70. Kg4 {[%clk 0:00:02]}  Kxe4 {[%clk 0:01:37]} 71. Rg2 {[%clk 0:00:03]}  Rh8 {[%clk 0:01:37]} 72. Re2+ {[%clk 0:00:03]}  Kd3 {[%clk 0:01:38]} 73. Re6 {[%clk 0:00:03]}  Rg8+ {[%clk 0:01:39]} 74. Kf5 {[%clk 0:00:03]}  Kd4 {[%clk 0:01:39]} 75. Rd6+ {[%clk 0:00:03]}  Kc5 {[%clk 0:01:39]} 76. Rf6 {[%clk 0:00:03]}  Kd5 {[%clk 0:01:39]} 77. Kf4 {[%clk 0:00:03]}  Rg1 {[%clk 0:01:39]} 78. Rf5+ {[%clk 0:00:02]}  Ke6 {[%clk 0:01:39]} 79. Ra5 {[%clk 0:00:02]}  Rf1+ {[%clk 0:01:39]} 80. Ke3 {[%clk 0:00:02]}  Rf8 {[%clk 0:01:37]} 81. Kd3 {[%clk 0:00:02]}  Rd8+ {[%clk 0:01:37]} 82. Ke3 {[%clk 0:00:02]}  Rc8 {[%clk 0:01:37]} 83. Kd3 {[%clk 0:00:03]}  Rb8 {[%clk 0:01:37]} 84. Ke3 {[%clk 0:00:03]}  Kd6 {[%clk 0:01:38]} 85. Kd3 {[%clk 0:00:03]}  Kc6 {[%clk 0:01:38]} 86. Ke3 {[%clk 0:00:03]}  Rb3+ {[%clk 0:01:38]} 87. Ke4 {[%clk 0:00:03]}  Kb6 {[%clk 0:01:39]} 88. Rh5 {[%clk 0:00:03]}  Rb4+ {[%clk 0:01:39]} 89. Ke3 {[%clk 0:00:03]}  Kc6 {[%clk 0:01:39]} 90. Kd3 {[%clk 0:00:03]}  Kd6 {[%clk 0:01:40]} 91. Ke3 {[%clk 0:00:03]}  Rb8 {[%clk 0:01:39]} 92. Kd3 {[%clk 0:00:03]}  Re8 {[%clk 0:01:40]} 93. Kc3 {[%clk 0:00:03]}  Re5 {[%clk 0:01:40]} 94. Rxe5 {[%clk 0:00:03]}  Kxe5 {[%clk 0:01:41]} 1/2-1/2


[Site "https://www.chess.com"]

[Event "Titled Tuesday Blitz January 31 Late 2023"]
[White "Korchmar, Vasiliy"]
[Black "Kraus, Tomas"]
[WhiteFideId "24131750"]
[BlackFideId "331708"]
[WhiteElo "2438"]
[BlackElo "2473"]
[Result "1-0"]
[Round "04"]
[TimeControl "180+2"]
[Date "2023.01.31"]
[WhiteClock "0:01:30"]
[BlackClock "0:01:33"]

1. e4 {[%clk 0:02:57]}  c5 {[%clk 0:02:59]} 2. Nf3 {[%clk 0:02:57]}  d6 {[%clk 0:02:59]} 3. d4 {[%clk 0:02:57]}  cxd4 {[%clk 0:03:00]} 4. Nxd4 {[%clk 0:02:58]}  Nf6 {[%clk 0:03:00]} 5. Nc3 {[%clk 0:02:58]}  a6 {[%clk 0:03:01]} 6. Be2 {[%clk 0:02:59]}  e5 {[%clk 0:03:00]} 7. Nb3 {[%clk 0:02:59]}  Be7 {[%clk 0:03:00]} 8. O-O {[%clk 0:03:00]}  O-O {[%clk 0:03:00]} 9. Be3 {[%clk 0:03:01]}  Be6 {[%clk 0:02:59]} 10. Nd5 {[%clk 0:03:01]}  Nxd5 {[%clk 0:02:55]} 11. exd5 {[%clk 0:03:02]}  Bf5 {[%clk 0:02:56]} 12. a4 {[%clk 0:02:57]}  Nd7 {[%clk 0:02:51]} 13. a5 {[%clk 0:02:57]}  Rc8 {[%clk 0:02:52]} 14. c4 {[%clk 0:02:54]}  Bg5 {[%clk 0:02:46]} 15. Qd2 {[%clk 0:02:48]}  Bxe3 {[%clk 0:02:45]} 16. Qxe3 {[%clk 0:02:49]}  h6 {[%clk 0:02:25]} 17. Nd2 {[%clk 0:02:36]}  Qg5 {[%clk 0:02:17]} 18. Qxg5 {[%clk 0:02:33]}  hxg5 {[%clk 0:02:18]} 19. b4 {[%clk 0:02:33]}  e4 {[%clk 0:02:07]} 20. Rfc1 {[%clk 0:02:32]}  Rc7 {[%clk 0:02:04]} 21. Nf1 {[%clk 0:02:23]}  Bg6 {[%clk 0:01:54]} 22. g4 {[%clk 0:02:07]}  Rfc8 {[%clk 0:01:53]} 23. Ne3 {[%clk 0:02:07]}  Ne5 {[%clk 0:01:53]} 24. Rc3 {[%clk 0:01:58]}  Bh7 {[%clk 0:01:42]} 25. Rac1 {[%clk 0:01:59]}  g6 {[%clk 0:01:40]} 26. c5 {[%clk 0:01:57]}  f5 {[%clk 0:01:39]} 27. c6 {[%clk 0:01:32]}  f4 {[%clk 0:01:33]} 28. cxb7 {[%clk 0:01:30]} 1-0


[Site "https://www.chess.com"]

[Event "Titled Tuesday Blitz January 31 Late 2023"]
[White "Vasques, Antonio Pedro Freixial"]
[Black "Aldokhin, Ivan"]
[WhiteFideId "1908332"]
[BlackFideId "24115720"]
[WhiteElo "2214"]
[BlackElo "2413"]
[Result "0-1"]
[Round "04"]
[TimeControl "180+2"]
[Date "2023.01.31"]
[WhiteClock "0:00:53"]
[BlackClock "0:01:46"]

1. e4 {[%clk 0:03:00]}  c5 {[%clk 0:03:00]} 2. Nf3 {[%clk 0:02:59]}  e6 {[%clk 0:03:00]} 3. d4 {[%clk 0:02:58]}  cxd4 {[%clk 0:03:01]} 4. Nxd4 {[%clk 0:02:59]}  a6 {[%clk 0:03:02]} 5. c4 {[%clk 0:02:58]}  Qc7 {[%clk 0:03:02]} 6. Nc3 {[%clk 0:02:58]}  Nf6 {[%clk 0:03:03]} 7. a3 {[%clk 0:02:48]}  d6 {[%clk 0:03:03]} 8. Be3 {[%clk 0:02:46]}  Be7 {[%clk 0:03:04]} 9. f3 {[%clk 0:02:46]}  O-O {[%clk 0:03:03]} 10. Be2 {[%clk 0:02:47]}  b6 {[%clk 0:03:03]} 11. O-O {[%clk 0:02:47]}  Bb7 {[%clk 0:03:04]} 12. Qd2 {[%clk 0:02:46]}  Nbd7 {[%clk 0:03:04]} 13. Rfc1 {[%clk 0:02:35]}  Rac8 {[%clk 0:03:05]} 14. b4 {[%clk 0:02:33]}  Qb8 {[%clk 0:03:05]} 15. Bf1 {[%clk 0:02:33]}  Bd8 {[%clk 0:03:06]} 16. Nb3 {[%clk 0:02:33]}  Bc7 {[%clk 0:03:06]} 17. g3 {[%clk 0:02:24]}  Ne5 {[%clk 0:03:06]} 18. Qf2 {[%clk 0:02:14]}  d5 {[%clk 0:02:53]} 19. cxd5 {[%clk 0:02:10]}  exd5 {[%clk 0:02:51]} 20. exd5 {[%clk 0:01:48]}  Nxd5 {[%clk 0:02:48]} 21. Nxd5 {[%clk 0:01:45]}  Bxd5 {[%clk 0:02:49]} 22. Nd4 {[%clk 0:01:46]}  Qb7 {[%clk 0:02:47]} 23. Bg2 {[%clk 0:01:41]}  Nd3 {[%clk 0:02:46]} 24. Qd2 {[%clk 0:01:37]}  Nxc1 {[%clk 0:02:46]} 25. Rxc1 {[%clk 0:01:37]}  Be5 {[%clk 0:02:43]} 26. Nf5 {[%clk 0:01:35]}  Rxc1+ {[%clk 0:02:41]} 27. Qxc1 {[%clk 0:01:35]}  Bxf3 {[%clk 0:02:39]} 28. Bf1 {[%clk 0:01:23]}  Qe4 {[%clk 0:02:26]} 29. Nh4 {[%clk 0:01:03]}  Bg4 {[%clk 0:02:19]} 30. Bg2 {[%clk 0:00:57]}  Qd3 {[%clk 0:02:16]} 31. Bf1 {[%clk 0:00:58]}  Qd5 {[%clk 0:02:04]} 32. Qd2 {[%clk 0:00:57]}  Qxd2 {[%clk 0:02:01]} 33. Bxd2 {[%clk 0:00:58]}  Rd8 {[%clk 0:01:58]} 34. Be3 {[%clk 0:00:57]}  Rd1 {[%clk 0:01:54]} 35. Kf2 {[%clk 0:00:57]}  b5 {[%clk 0:01:49]} 36. Ng2 {[%clk 0:00:53]}  Ra1 {[%clk 0:01:46]} 0-1


[Site "https://www.chess.com"]

[Event "Titled Tuesday Blitz January 31 Late 2023"]
[White "Kourkoulos-Arditis, Stamatis"]
[Black "Sai Han Thiha"]
[WhiteFideId "4221990"]
[BlackFideId "13012290"]
[WhiteElo "2539"]
[BlackElo "2070"]
[Result "1-0"]
[Round "04"]
[TimeControl "180+2"]
[Date "2023.01.31"]
[WhiteClock "0:00:13"]
[BlackClock "0:00:02"]

1. e4 {[%clk 0:03:00]}  c6 {[%clk 0:03:00]} 2. d4 {[%clk 0:02:55]}  d5 {[%clk 0:03:01]} 3. exd5 {[%clk 0:02:55]}  cxd5 {[%clk 0:03:01]} 4. c4 {[%clk 0:02:56]}  Nf6 {[%clk 0:03:01]} 5. Nf3 {[%clk 0:02:55]}  e6 {[%clk 0:03:01]} 6. Nc3 {[%clk 0:02:56]}  Bb4 {[%clk 0:03:02]} 7. Bd3 {[%clk 0:02:53]}  dxc4 {[%clk 0:02:51]} 8. Bxc4 {[%clk 0:02:54]}  O-O {[%clk 0:02:49]} 9. O-O {[%clk 0:02:54]}  b6 {[%clk 0:02:48]} 10. Bg5 {[%clk 0:02:53]}  Bb7 {[%clk 0:02:44]} 11. Qe2 {[%clk 0:02:44]}  Nbd7 {[%clk 0:02:40]} 12. Ne5 {[%clk 0:02:38]}  Rc8 {[%clk 0:02:05]} 13. Rad1 {[%clk 0:01:56]}  Qc7 {[%clk 0:01:59]} 14. Nb5 {[%clk 0:01:51]}  Qb8 {[%clk 0:01:57]} 15. Bf4 {[%clk 0:00:55]}  Qa8 {[%clk 0:01:45]} 16. a3 {[%clk 0:00:54]}  Be7 {[%clk 0:01:43]} 17. Nxf7 {[%clk 0:00:54]}  Rxf7 {[%clk 0:01:13]} 18. Bxe6 {[%clk 0:00:50]}  Bxg2 {[%clk 0:00:27]} 19. Bxf7+ {[%clk 0:00:44]}  Kxf7 {[%clk 0:00:26]} 20. Rfe1 {[%clk 0:00:44]}  Be4 {[%clk 0:00:26]} 21. f3 {[%clk 0:00:39]}  Rc2 {[%clk 0:00:26]} 22. Rd2 {[%clk 0:00:36]}  Rxd2 {[%clk 0:00:15]} 23. Bxd2 {[%clk 0:00:36]}  a6 {[%clk 0:00:15]} 24. Nc3 {[%clk 0:00:32]}  Bxf3 {[%clk 0:00:13]} 25. Qxe7+ {[%clk 0:00:27]}  Kg8 {[%clk 0:00:13]} 26. Qe6+ {[%clk 0:00:20]}  Kh8 {[%clk 0:00:12]} 27. d5 {[%clk 0:00:20]}  h5 {[%clk 0:00:12]} 28. Qf5 {[%clk 0:00:16]}  Bg4 {[%clk 0:00:11]} 29. Qd3 {[%clk 0:00:15]}  Nc5 {[%clk 0:00:11]} 30. Qg3 {[%clk 0:00:14]}  Qd8 {[%clk 0:00:10]} 31. d6 {[%clk 0:00:14]}  b5 {[%clk 0:00:07]} 32. Re7 {[%clk 0:00:13]}  a5 {[%clk 0:00:06]} 33. Bg5 {[%clk 0:00:12]}  b4 {[%clk 0:00:04]} 34. Bxf6 {[%clk 0:00:12]}  gxf6 {[%clk 0:00:04]} 35. Qf4 {[%clk 0:00:12]}  Qf8 {[%clk 0:00:02]} 36. Nd5 {[%clk 0:00:12]}  Nb7 {[%clk 0:00:01]} 37. Qxf6+ {[%clk 0:00:12]}  Qxf6 {[%clk 0:00:01]} 38. Nxf6 {[%clk 0:00:13]}  Nxd6 {[%clk 0:00:02]} 39. Rh7# {[%clk 0:00:13]} 1-0


[Site "https://www.chess.com"]

[Event "Titled Tuesday Blitz January 31 Late 2023"]
[White "Machidon, Cristi"]
[Black "Gonzalez, Francisco Silva"]
[WhiteFideId "13904590"]
[BlackFideId "1512285"]
[WhiteElo "2301"]
[BlackElo "2021"]
[Result "0-1"]
[Round "04"]
[TimeControl "180+2"]
[Date "2023.01.31"]
[WhiteClock "0:00:06"]
[BlackClock "0:00:57"]

1. c4 {[%clk 0:02:56]}  e6 {[%clk 0:02:59]} 2. Nc3 {[%clk 0:02:56]}  d5 {[%clk 0:02:50]} 3. cxd5 {[%clk 0:02:55]}  exd5 {[%clk 0:02:47]} 4. d4 {[%clk 0:02:56]}  a6 {[%clk 0:02:44]} 5. Nf3 {[%clk 0:02:55]}  Nf6 {[%clk 0:02:43]} 6. Bg5 {[%clk 0:02:54]}  Be6 {[%clk 0:02:44]} 7. Qb3 {[%clk 0:02:52]}  b5 {[%clk 0:02:41]} 8. Bxf6 {[%clk 0:02:49]}  Qxf6 {[%clk 0:02:40]} 9. a4 {[%clk 0:02:35]}  b4 {[%clk 0:02:38]} 10. Nxd5 {[%clk 0:02:35]}  Qd8 {[%clk 0:02:38]} 11. e4 {[%clk 0:02:35]}  c6 {[%clk 0:02:38]} 12. Bc4 {[%clk 0:02:32]}  cxd5 {[%clk 0:02:37]} 13. exd5 {[%clk 0:02:33]}  Bg4 {[%clk 0:02:32]} 14. Ne5 {[%clk 0:02:32]}  Bh5 {[%clk 0:02:27]} 15. d6 {[%clk 0:02:31]}  Ra7 {[%clk 0:02:25]} 16. g4 {[%clk 0:01:39]}  Bg6 {[%clk 0:02:24]} 17. Qe3 {[%clk 0:01:38]}  Be7 {[%clk 0:01:48]} 18. dxe7 {[%clk 0:01:31]}  Rxe7 {[%clk 0:01:46]} 19. f4 {[%clk 0:01:16]}  f6 {[%clk 0:01:47]} 20. f5 {[%clk 0:01:16]}  fxe5 {[%clk 0:01:47]} 21. dxe5 {[%clk 0:01:15]}  Qc7 {[%clk 0:01:44]} 22. Be6 {[%clk 0:00:51]}  Rxe6 {[%clk 0:01:44]} 23. fxe6 {[%clk 0:00:48]}  O-O {[%clk 0:01:43]} 24. Rf1 {[%clk 0:00:45]}  Rxf1+ {[%clk 0:01:35]} 25. Kxf1 {[%clk 0:00:45]}  Qc4+ {[%clk 0:01:35]} 26. Kf2 {[%clk 0:00:40]}  Qxe6 {[%clk 0:01:34]} 27. Rd1 {[%clk 0:00:35]}  Nd7 {[%clk 0:01:19]} 28. Rd6 {[%clk 0:00:34]}  Qxg4 {[%clk 0:01:18]} 29. e6 {[%clk 0:00:29]}  Qh4+ {[%clk 0:01:19]} 30. Qg3 {[%clk 0:00:22]}  Qf6+ {[%clk 0:01:17]} 31. Kg1 {[%clk 0:00:13]}  Nf8 {[%clk 0:01:06]} 32. Qf2 {[%clk 0:00:11]}  Qg5+ {[%clk 0:01:04]} 33. Kf1 {[%clk 0:00:08]}  Bf5 {[%clk 0:00:58]} 34. e7 {[%clk 0:00:06]}  Bh3+ {[%clk 0:00:57]} 0-1


[Site "https://www.chess.com"]

[Event "Titled Tuesday Blitz January 31 Late 2023"]
[White "Can, Melih Kaan"]
[Black "Toncheva, Nadya"]
[WhiteFideId "6317383"]
[BlackFideId "2924056"]
[WhiteElo "2069"]
[BlackElo "2295"]
[Result "1-0"]
[Round "04"]
[TimeControl "180+2"]
[Date "2023.01.31"]
[WhiteClock "0:00:11"]
[BlackClock "0:00:04"]

1. d4 {[%clk 0:02:35]}  d5 {[%clk 0:02:58]} 2. c4 {[%clk 0:02:35]}  dxc4 {[%clk 0:02:59]} 3. Qa4+ {[%clk 0:02:31]}  c6 {[%clk 0:02:58]} 4. Qxc4 {[%clk 0:02:31]}  Nf6 {[%clk 0:02:58]} 5. g3 {[%clk 0:02:27]}  Be6 {[%clk 0:02:55]} 6. Qd3 {[%clk 0:02:26]}  Bd5 {[%clk 0:02:52]} 7. Nf3 {[%clk 0:02:25]}  Be4 {[%clk 0:02:39]} 8. Qb3 {[%clk 0:02:22]}  Qb6 {[%clk 0:02:16]} 9. Nc3 {[%clk 0:02:11]}  Bxf3 {[%clk 0:02:12]} 10. exf3 {[%clk 0:02:10]}  Qxb3 {[%clk 0:02:10]} 11. axb3 {[%clk 0:02:09]}  e6 {[%clk 0:02:10]} 12. Bg2 {[%clk 0:02:05]}  Nbd7 {[%clk 0:02:08]} 13. O-O {[%clk 0:02:05]}  Be7 {[%clk 0:02:06]} 14. Bd2 {[%clk 0:02:00]}  O-O {[%clk 0:02:06]} 15. Ne4 {[%clk 0:02:00]}  Nd5 {[%clk 0:02:03]} 16. Rfc1 {[%clk 0:01:56]}  Rfd8 {[%clk 0:01:55]} 17. f4 {[%clk 0:01:52]}  a6 {[%clk 0:01:46]} 18. Nc5 {[%clk 0:01:45]}  Nxc5 {[%clk 0:01:33]} 19. dxc5 {[%clk 0:01:46]}  Bf6 {[%clk 0:01:32]} 20. Rc2 {[%clk 0:01:36]}  Rd7 {[%clk 0:01:28]} 21. Ba5 {[%clk 0:01:36]}  Ne7 {[%clk 0:01:18]} 22. Be4 {[%clk 0:01:28]}  g6 {[%clk 0:01:11]} 23. Kg2 {[%clk 0:01:27]}  Nf5 {[%clk 0:01:11]} 24. Bc3 {[%clk 0:01:24]}  Kg7 {[%clk 0:00:52]} 25. b4 {[%clk 0:01:20]}  Rad8 {[%clk 0:00:50]} 26. Re1 {[%clk 0:01:10]}  Nd4 {[%clk 0:00:41]} 27. Rd2 {[%clk 0:01:06]}  Nb3 {[%clk 0:00:32]} 28. Rxd7 {[%clk 0:01:02]}  Rxd7 {[%clk 0:00:32]} 29. Bc2 {[%clk 0:00:53]}  Nd4 {[%clk 0:00:21]} 30. Rd1 {[%clk 0:00:54]}  Rd5 {[%clk 0:00:21]} 31. Be4 {[%clk 0:00:51]}  Rd8 {[%clk 0:00:19]} 32. Rd3 {[%clk 0:00:50]}  Kf8 {[%clk 0:00:15]} 33. g4 {[%clk 0:00:45]}  Ke7 {[%clk 0:00:14]} 34. g5 {[%clk 0:00:45]}  Bg7 {[%clk 0:00:14]} 35. h4 {[%clk 0:00:44]}  Rd7 {[%clk 0:00:10]} 36. h5 {[%clk 0:00:41]}  Nf5 {[%clk 0:00:07]} 37. Rxd7+ {[%clk 0:00:09]}  Kxd7 {[%clk 0:00:08]} 38. Bxf5 {[%clk 0:00:10]}  Bxc3 {[%clk 0:00:07]} 39. Bxe6+ {[%clk 0:00:11]}  Kxe6 {[%clk 0:00:07]} 40. bxc3 {[%clk 0:00:11]}  gxh5 {[%clk 0:00:07]} 41. Kf3 {[%clk 0:00:05]}  Kf5 {[%clk 0:00:07]} 42. Kg3 {[%clk 0:00:05]}  h4+ {[%clk 0:00:06]} 43. Kxh4 {[%clk 0:00:06]}  Kxf4 {[%clk 0:00:07]} 44. Kh5 {[%clk 0:00:05]}  Kf3 {[%clk 0:00:05]} 45. Kh6 {[%clk 0:00:05]}  Kxf2 {[%clk 0:00:04]} 46. Kxh7 {[%clk 0:00:06]}  Kf3 {[%clk 0:00:05]} 47. Kg7 {[%clk 0:00:06]}  Kf4 {[%clk 0:00:05]} 48. Kxf7 {[%clk 0:00:06]}  Kxg5 {[%clk 0:00:06]} 49. Ke7 {[%clk 0:00:07]}  Kf5 {[%clk 0:00:06]} 50. Kd7 {[%clk 0:00:08]}  Ke5 {[%clk 0:00:04]} 51. Kc7 {[%clk 0:00:08]}  Kd5 {[%clk 0:00:04]} 52. Kxb7 {[%clk 0:00:08]}  a5 {[%clk 0:00:05]} 53. bxa5 {[%clk 0:00:08]}  Kxc5 {[%clk 0:00:06]} 54. a6 {[%clk 0:00:09]}  Kb5 {[%clk 0:00:04]} 55. a7 {[%clk 0:00:10]}  c5 {[%clk 0:00:05]} 56. a8=Q {[%clk 0:00:11]}  Kc4 {[%clk 0:00:04]} 57. Kc6 {[%clk 0:00:11]}  Kxc3 {[%clk 0:00:04]} 58. Kxc5 {[%clk 0:00:11]} 1-0


[Site "https://www.chess.com"]